[Event "Titled Tuesday Blitz September 20 Late 2022"]
[White "Jaracz, Pawel"]
[Black "Sohal, Tanraj"]
[WhiteFideId "1102222"]
[BlackFideId "2608499"]
[WhiteElo "2459"]
[BlackElo "2200"]
[Result "1-0"]
[Round "04"]
[TimeControl "180+1"]
[Date "2022.09.20"]
[WhiteClock "0:00:50"]
[BlackClock "0:00:02"]

1. d4 {[%clk 0:03:00]}  Nf6 {[%clk 0:02:59]} 2. c4 {[%clk 0:03:01]}  e6 {[%clk 0:02:56]} 3. Nc3 {[%clk 0:02:59]}  d5 {[%clk 0:02:37]} 4. Nf3 {[%clk 0:02:58]}  c5 {[%clk 0:02:35]} 5. e3 {[%clk 0:02:57]}  cxd4 {[%clk 0:02:35]} 6. exd4 {[%clk 0:02:56]}  Be7 {[%clk 0:02:36]} 7. cxd5 {[%clk 0:02:51]}  exd5 {[%clk 0:02:35]} 8. Bd3 {[%clk 0:02:50]}  Nc6 {[%clk 0:02:35]} 9. O-O {[%clk 0:02:47]}  Bg4 {[%clk 0:02:32]} 10. Be3 {[%clk 0:02:43]}  O-O {[%clk 0:02:23]} 11. h3 {[%clk 0:02:42]}  Bh5 {[%clk 0:02:23]} 12. g4 {[%clk 0:02:42]}  Bg6 {[%clk 0:02:23]} 13. Bxg6 {[%clk 0:02:40]}  hxg6 {[%clk 0:02:21]} 14. Ne5 {[%clk 0:02:40]}  Bd6 {[%clk 0:02:13]} 15. f4 {[%clk 0:02:36]}  Qb6 {[%clk 0:02:11]} 16. Na4 {[%clk 0:02:25]}  Qb4 {[%clk 0:02:03]} 17. a3 {[%clk 0:02:22]}  Qa5 {[%clk 0:02:01]} 18. b4 {[%clk 0:02:21]}  Qd8 {[%clk 0:02:02]} 19. Nc3 {[%clk 0:02:17]}  Ne4 {[%clk 0:02:00]} 20. Nxe4 {[%clk 0:02:16]}  dxe4 {[%clk 0:01:59]} 21. Qc2 {[%clk 0:02:04]}  Qh4 {[%clk 0:01:56]} 22. Kg2 {[%clk 0:02:04]}  Rfe8 {[%clk 0:01:14]} 23. Qxe4 {[%clk 0:02:01]}  f6 {[%clk 0:01:04]} 24. Qd5+ {[%clk 0:02:00]}  Kh7 {[%clk 0:01:05]} 25. Qxd6 {[%clk 0:01:45]}  fxe5 {[%clk 0:01:03]} 26. fxe5 {[%clk 0:01:33]}  Rad8 {[%clk 0:01:02]} 27. Qc5 {[%clk 0:01:31]}  Ne7 {[%clk 0:00:52]} 28. Rf7 {[%clk 0:01:27]}  Nd5 {[%clk 0:00:49]} 29. Bd2 {[%clk 0:01:27]}  b6 {[%clk 0:00:46]} 30. Qc6 {[%clk 0:01:22]}  Ne7 {[%clk 0:00:21]} 31. Qe4 {[%clk 0:01:21]}  Nc8 {[%clk 0:00:13]} 32. Qf4 {[%clk 0:01:06]}  Nd6 {[%clk 0:00:08]} 33. Be1 {[%clk 0:00:51]}  g5 {[%clk 0:00:02]} 34. Bxh4 {[%clk 0:00:51]}  gxf4 {[%clk 0:00:02]} 35. exd6 {[%clk 0:00:51]}  Rxd6 {[%clk 0:00:02]} 36. Rxf4 {[%clk 0:00:50]} 1-0


[Site "https://www.chess.com"]

[Event "Titled Tuesday Blitz September 20 Late 2022"]
[White "Kollars, Dmitrij"]
[Black "Preotu, Razvan"]
[WhiteFideId "12909572"]
[BlackFideId "2613280"]
[WhiteElo "2584"]
[BlackElo "2407"]
[Result "0-1"]
[Round "04"]
[TimeControl "180+1"]
[Date "2022.09.20"]
[WhiteClock "0:00:01"]
[BlackClock "0:00:09"]

1. c4 {[%clk 0:03:00]}  c5 {[%clk 0:02:58]} 2. Nc3 {[%clk 0:03:00]}  Nc6 {[%clk 0:02:59]} 3. Nf3 {[%clk 0:02:58]}  g6 {[%clk 0:02:55]} 4. e3 {[%clk 0:02:56]}  Nf6 {[%clk 0:02:56]} 5. d4 {[%clk 0:02:56]}  cxd4 {[%clk 0:02:57]} 6. exd4 {[%clk 0:02:56]}  d5 {[%clk 0:02:57]} 7. cxd5 {[%clk 0:02:57]}  Nxd5 {[%clk 0:02:57]} 8. Bc4 {[%clk 0:02:58]}  Nb6 {[%clk 0:02:56]} 9. Bb3 {[%clk 0:02:57]}  Bg7 {[%clk 0:02:57]} 10. d5 {[%clk 0:02:52]}  Na5 {[%clk 0:02:57]} 11. O-O {[%clk 0:02:52]}  O-O {[%clk 0:02:56]} 12. Re1 {[%clk 0:02:52]}  Bg4 {[%clk 0:02:54]} 13. h3 {[%clk 0:02:45]}  Bxf3 {[%clk 0:02:52]} 14. Qxf3 {[%clk 0:02:45]}  Re8 {[%clk 0:02:43]} 15. Bg5 {[%clk 0:01:50]}  Nxb3 {[%clk 0:02:35]} 16. axb3 {[%clk 0:01:50]}  Bxc3 {[%clk 0:02:34]} 17. bxc3 {[%clk 0:01:50]}  Qxd5 {[%clk 0:02:33]} 18. Qxd5 {[%clk 0:01:46]}  Nxd5 {[%clk 0:02:34]} 19. c4 {[%clk 0:01:47]}  Nb4 {[%clk 0:02:18]} 20. Rxe7 {[%clk 0:01:46]}  Rxe7 {[%clk 0:02:06]} 21. Bxe7 {[%clk 0:01:46]}  Nc6 {[%clk 0:02:06]} 22. Bf6 {[%clk 0:01:46]}  Re8 {[%clk 0:02:06]} 23. b4 {[%clk 0:01:45]}  a6 {[%clk 0:01:16]} 24. b5 {[%clk 0:01:44]}  Ne5 {[%clk 0:01:14]} 25. bxa6 {[%clk 0:01:26]}  bxa6 {[%clk 0:01:15]} 26. Bxe5 {[%clk 0:01:02]}  Rxe5 {[%clk 0:01:14]} 27. Rxa6 {[%clk 0:01:03]}  Re1+ {[%clk 0:00:59]} 28. Kh2 {[%clk 0:01:02]}  Rc1 {[%clk 0:00:59]} 29. Rc6 {[%clk 0:01:01]}  Rc3 {[%clk 0:00:59]} 30. g4 {[%clk 0:00:50]}  Kf8 {[%clk 0:00:59]} 31. Kg2 {[%clk 0:00:34]}  Ke7 {[%clk 0:00:58]} 32. Rc7+ {[%clk 0:00:28]}  Ke6 {[%clk 0:00:57]} 33. g5 {[%clk 0:00:20]}  Kf5 {[%clk 0:00:47]} 34. h4 {[%clk 0:00:15]}  Kg4 {[%clk 0:00:46]} 35. Rxf7 {[%clk 0:00:14]}  Kxh4 {[%clk 0:00:46]} 36. Rxh7+ {[%clk 0:00:14]}  Kxg5 {[%clk 0:00:46]} 37. Rc7 {[%clk 0:00:14]}  Kf4 {[%clk 0:00:45]} 38. c5 {[%clk 0:00:11]}  Ke5 {[%clk 0:00:37]} 39. f3 {[%clk 0:00:06]}  Kd5 {[%clk 0:00:33]} 40. Rd7+ {[%clk 0:00:04]}  Kc6 {[%clk 0:00:32]} 41. Rd6+ {[%clk 0:00:03]}  Kxc5 {[%clk 0:00:32]} 42. Rxg6 {[%clk 0:00:03]}  Kd5 {[%clk 0:00:31]} 43. Kg3 {[%clk 0:00:03]}  Rc8 {[%clk 0:00:27]} 44. Kg4 {[%clk 0:00:03]}  Rf8 {[%clk 0:00:25]} 45. f4 {[%clk 0:00:03]}  Rf7 {[%clk 0:00:17]} 46. f5 {[%clk 0:00:03]}  Rf8 {[%clk 0:00:17]} 47. Kg5 {[%clk 0:00:03]}  Ke5 {[%clk 0:00:17]} 48. Re6+ {[%clk 0:00:03]}  Kd5 {[%clk 0:00:18]} 49. Re2 {[%clk 0:00:04]}  Kd6 {[%clk 0:00:16]} 50. f6 {[%clk 0:00:04]}  Kd7 {[%clk 0:00:15]} 51. Kg6 {[%clk 0:00:03]}  Rg8+ {[%clk 0:00:16]} 52. Kh7 {[%clk 0:00:02]}  Rg1 {[%clk 0:00:13]} 53. f7 {[%clk 0:00:02]}  Rh1+ {[%clk 0:00:13]} 54. Kg7 {[%clk 0:00:02]}  Rg1+ {[%clk 0:00:14]} 55. Kf8 {[%clk 0:00:03]}  Rf1 {[%clk 0:00:10]} 56. Rd2+ {[%clk 0:00:02]}  Kc7 {[%clk 0:00:10]} 57. Rd4 {[%clk 0:00:01]}  Rf2 {[%clk 0:00:09]} 0-1


[Site "https://www.chess.com"]

[Event "Titled Tuesday Blitz September 20 Late 2022"]
[White "Moroni, Luca Jr"]
[Black "Andreikin, Dmitry"]
[WhiteFideId "865834"]
[BlackFideId "4158814"]
[WhiteElo "2881"]
[BlackElo "3061"]
[Result "1/2-1/2"]
[Round "04"]
[TimeControl "180+1"]
[Date "2022.09.20"]
[WhiteClock "0:00:08"]
[BlackClock "0:00:09"]

1. d4 {[%clk 0:03:00]}  Nf6 {[%clk 0:03:00]} 2. c4 {[%clk 0:03:01]}  g6 {[%clk 0:03:00]} 3. Nc3 {[%clk 0:03:02]}  Bg7 {[%clk 0:03:01]} 4. e4 {[%clk 0:03:02]}  O-O {[%clk 0:03:01]} 5. Bd3 {[%clk 0:03:02]}  d6 {[%clk 0:02:50]} 6. Nge2 {[%clk 0:03:02]}  Na6 {[%clk 0:02:45]} 7. O-O {[%clk 0:03:01]}  e5 {[%clk 0:02:44]} 8. d5 {[%clk 0:03:00]}  Nc5 {[%clk 0:02:44]} 9. Bc2 {[%clk 0:03:01]}  a5 {[%clk 0:02:44]} 10. b3 {[%clk 0:02:58]}  Nh5 {[%clk 0:02:42]} 11. Rb1 {[%clk 0:02:47]}  f5 {[%clk 0:02:39]} 12. exf5 {[%clk 0:02:48]}  gxf5 {[%clk 0:02:36]} 13. Ng3 {[%clk 0:02:40]}  Nf4 {[%clk 0:02:35]} 14. a3 {[%clk 0:02:26]}  Qg5 {[%clk 0:02:33]} 15. b4 {[%clk 0:02:21]}  axb4 {[%clk 0:02:34]} 16. axb4 {[%clk 0:02:22]}  Nd7 {[%clk 0:02:34]} 17. Nb5 {[%clk 0:02:17]}  Nf6 {[%clk 0:01:41]} 18. Nxc7 {[%clk 0:02:16]}  Ra2 {[%clk 0:01:41]} 19. Bb3 {[%clk 0:02:06]}  Ng4 {[%clk 0:01:33]} 20. Qf3 {[%clk 0:01:43]}  Ra7 {[%clk 0:00:46]} 21. h3 {[%clk 0:01:38]}  Qh4 {[%clk 0:00:35]} 22. c5 {[%clk 0:01:23]}  Rf6 {[%clk 0:00:25]} 23. cxd6 {[%clk 0:01:10]}  Bd7 {[%clk 0:00:22]} 24. Ne6 {[%clk 0:01:07]}  Nxh3+ {[%clk 0:00:11]} 25. gxh3 {[%clk 0:01:05]}  e4 {[%clk 0:00:11]} 26. Qg2 {[%clk 0:01:01]}  Ne5 {[%clk 0:00:11]} 27. Nxg7 {[%clk 0:00:54]}  Rg6 {[%clk 0:00:10]} 28. Ne6 {[%clk 0:00:43]}  Ra8 {[%clk 0:00:08]} 29. Kh1 {[%clk 0:00:39]}  Kf7 {[%clk 0:00:07]} 30. Nxf5 {[%clk 0:00:20]}  Qf6 {[%clk 0:00:05]} 31. Ng3 {[%clk 0:00:20]}  Nf3 {[%clk 0:00:05]} 32. Bc2 {[%clk 0:00:15]}  Nh4 {[%clk 0:00:02]} 33. Qxe4 {[%clk 0:00:14]}  Rxg3 {[%clk 0:00:02]} 34. Qxh7+ {[%clk 0:00:12]}  Ke8 {[%clk 0:00:02]} 35. Qe7+ {[%clk 0:00:05]}  Qxe7 {[%clk 0:00:02]} 36. dxe7 {[%clk 0:00:06]}  Rxh3+ {[%clk 0:00:02]} 37. Kg1 {[%clk 0:00:06]}  Kxe7 {[%clk 0:00:01]} 38. Bg5+ {[%clk 0:00:06]}  Kd6 {[%clk 0:00:02]} 39. Bf4+ {[%clk 0:00:06]}  Kxd5 {[%clk 0:00:02]} 40. Bb3+ {[%clk 0:00:04]}  Rxb3 {[%clk 0:00:01]} 41. Rxb3 {[%clk 0:00:05]}  Bxe6 {[%clk 0:00:02]} 42. Rd1+ {[%clk 0:00:04]}  Ke4 {[%clk 0:00:02]} 43. Re3+ {[%clk 0:00:05]}  Kf5 {[%clk 0:00:03]} 44. Re5+ {[%clk 0:00:04]}  Kf6 {[%clk 0:00:03]} 45. Re3 {[%clk 0:00:03]}  Rg8+ {[%clk 0:00:03]} 46. Bg3 {[%clk 0:00:02]}  Nf5 {[%clk 0:00:02]} 47. Rc3 {[%clk 0:00:03]}  Rg4 {[%clk 0:00:03]} 48. Kf1 {[%clk 0:00:03]}  Rxb4 {[%clk 0:00:03]} 49. Re1 {[%clk 0:00:03]}  Rb6 {[%clk 0:00:02]} 50. Kg1 {[%clk 0:00:03]}  Rc6 {[%clk 0:00:02]} 51. Rf3 {[%clk 0:00:02]}  Bd5 {[%clk 0:00:02]} 52. Rf4 {[%clk 0:00:02]}  Rc4 {[%clk 0:00:03]} 53. Rxc4 {[%clk 0:00:02]}  Bxc4 {[%clk 0:00:03]} 54. Be5+ {[%clk 0:00:02]}  Ke6 {[%clk 0:00:03]} 55. Bc3+ {[%clk 0:00:03]}  Kd7 {[%clk 0:00:03]} 56. Kg2 {[%clk 0:00:04]}  b5 {[%clk 0:00:03]} 57. Kf3 {[%clk 0:00:03]}  Ne7 {[%clk 0:00:03]} 58. Ke4 {[%clk 0:00:03]}  Nd5 {[%clk 0:00:03]} 59. Kd4 {[%clk 0:00:03]}  Nf4 {[%clk 0:00:02]} 60. Re4 {[%clk 0:00:03]}  Ne6+ {[%clk 0:00:02]} 61. Ke5 {[%clk 0:00:02]}  Nc5 {[%clk 0:00:03]} 62. Rd4+ {[%clk 0:00:03]}  Kc6 {[%clk 0:00:03]} 63. Rd6+ {[%clk 0:00:03]}  Kc7 {[%clk 0:00:03]} 64. Ba5+ {[%clk 0:00:03]}  Kb7 {[%clk 0:00:04]} 65. Rb6+ {[%clk 0:00:03]}  Ka7 {[%clk 0:00:04]} 66. Rh6 {[%clk 0:00:03]}  Nd3+ {[%clk 0:00:04]} 67. Kd4 {[%clk 0:00:03]}  Nxf2 {[%clk 0:00:04]} 68. Rf6 {[%clk 0:00:03]}  Nd3 {[%clk 0:00:03]} 69. Rf3 {[%clk 0:00:03]}  Kb7 {[%clk 0:00:03]} 70. Bc3 {[%clk 0:00:03]}  Kc6 {[%clk 0:00:03]} 71. Rf6+ {[%clk 0:00:04]}  Kd7 {[%clk 0:00:03]} 72. Rf3 {[%clk 0:00:04]}  Ke6 {[%clk 0:00:03]} 73. Rh3 {[%clk 0:00:04]}  Kf5 {[%clk 0:00:03]} 74. Rf3+ {[%clk 0:00:04]}  Ke6 {[%clk 0:00:04]} 75. Re3+ {[%clk 0:00:04]}  Kf5 {[%clk 0:00:04]} 76. Bd2 {[%clk 0:00:04]}  Kf6 {[%clk 0:00:03]} 77. Rf3+ {[%clk 0:00:04]}  Ke6 {[%clk 0:00:04]} 78. Rg3 {[%clk 0:00:04]}  Kf5 {[%clk 0:00:04]} 79. Be3 {[%clk 0:00:04]}  Ke6 {[%clk 0:00:04]} 80. Rg6+ {[%clk 0:00:04]}  Kf5 {[%clk 0:00:04]} 81. Rg5+ {[%clk 0:00:05]}  Kf6 {[%clk 0:00:05]} 82. Rh5 {[%clk 0:00:06]}  Kg6 {[%clk 0:00:05]} 83. Rh6+ {[%clk 0:00:05]}  Kf5 {[%clk 0:00:05]} 84. Rh8 {[%clk 0:00:05]}  Kg4 {[%clk 0:00:05]} 85. Rg8+ {[%clk 0:00:05]}  Bxg8 {[%clk 0:00:04]} 86. Kxd3 {[%clk 0:00:04]}  Bc4+ {[%clk 0:00:05]} 87. Kd4 {[%clk 0:00:04]}  Kf3 {[%clk 0:00:06]} 88. Bd2 {[%clk 0:00:05]}  Ke2 {[%clk 0:00:06]} 89. Bb4 {[%clk 0:00:06]}  Kd1 {[%clk 0:00:07]} 90. Be7 {[%clk 0:00:06]}  Kc2 {[%clk 0:00:08]} 91. Bf8 {[%clk 0:00:07]}  Kb3 {[%clk 0:00:08]} 92. Be7 {[%clk 0:00:08]}  b4 {[%clk 0:00:09]} 93. Bxb4 {[%clk 0:00:08]} 1/2-1/2


[Site "https://www.chess.com"]

[Event "Titled Tuesday Blitz September 20 Late 2022"]
[White "Muradli, Mahammad"]
[Black "Leitao, Rafael"]
[WhiteFideId "13409301"]
[BlackFideId "2101246"]
[WhiteElo "2611"]
[BlackElo "2609"]
[Result "1-0"]
[Round "04"]
[TimeControl "180+1"]
[Date "2022.09.20"]
[WhiteClock "0:01:23"]
[BlackClock "0:00:59"]

1. c4 {[%clk 0:03:00]}  Nf6 {[%clk 0:02:59]} 2. Nc3 {[%clk 0:02:56]}  e5 {[%clk 0:02:56]} 3. Nf3 {[%clk 0:02:56]}  Nc6 {[%clk 0:02:55]} 4. d3 {[%clk 0:02:56]}  Bb4 {[%clk 0:02:51]} 5. Bd2 {[%clk 0:02:56]}  O-O {[%clk 0:02:50]} 6. Rc1 {[%clk 0:02:48]}  a5 {[%clk 0:02:43]} 7. e3 {[%clk 0:02:45]}  Re8 {[%clk 0:02:35]} 8. Be2 {[%clk 0:02:44]}  d6 {[%clk 0:02:34]} 9. h3 {[%clk 0:02:43]}  e4 {[%clk 0:02:30]} 10. dxe4 {[%clk 0:02:43]}  Nxe4 {[%clk 0:02:29]} 11. Nxe4 {[%clk 0:02:43]}  Rxe4 {[%clk 0:02:29]} 12. O-O {[%clk 0:02:43]}  Re8 {[%clk 0:02:12]} 13. a3 {[%clk 0:02:30]}  Bxd2 {[%clk 0:02:05]} 14. Qxd2 {[%clk 0:02:31]}  a4 {[%clk 0:01:59]} 15. c5 {[%clk 0:02:23]}  dxc5 {[%clk 0:01:53]} 16. Rxc5 {[%clk 0:02:17]}  Qxd2 {[%clk 0:01:48]} 17. Nxd2 {[%clk 0:02:18]}  Rd8 {[%clk 0:01:41]} 18. Nf3 {[%clk 0:02:14]}  Bd7 {[%clk 0:01:35]} 19. Rfc1 {[%clk 0:02:13]}  Be8 {[%clk 0:01:33]} 20. Bb5 {[%clk 0:02:11]}  Ra5 {[%clk 0:01:13]} 21. Bxc6 {[%clk 0:02:07]}  Rxc5 {[%clk 0:01:11]} 22. Rxc5 {[%clk 0:02:08]}  Rd1+ {[%clk 0:01:07]} 23. Kh2 {[%clk 0:02:08]}  Bxc6 {[%clk 0:01:08]} 24. Nd4 {[%clk 0:01:44]}  Rd2 {[%clk 0:01:06]} 25. Nxc6 {[%clk 0:01:29]}  bxc6 {[%clk 0:01:06]} 26. Kg3 {[%clk 0:01:30]}  Rxb2 {[%clk 0:01:03]} 27. Rxc6 {[%clk 0:01:30]}  Rb3 {[%clk 0:01:03]} 28. Ra6 {[%clk 0:01:31]}  g6 {[%clk 0:01:00]} 29. Rxa4 {[%clk 0:01:31]}  Kg7 {[%clk 0:01:00]} 30. Rc4 {[%clk 0:01:28]}  Rxa3 {[%clk 0:00:59]} 31. Rxc7 {[%clk 0:01:29]}  h5 {[%clk 0:01:00]} 32. Rb7 {[%clk 0:01:25]}  Ra2 {[%clk 0:01:00]} 33. Kf3 {[%clk 0:01:25]}  Rc2 {[%clk 0:00:59]} 34. Rd7 {[%clk 0:01:25]}  Rb2 {[%clk 0:00:59]} 35. g3 {[%clk 0:01:24]}  Ra2 {[%clk 0:00:59]} 36. Rd1 {[%clk 0:01:23]}  Rb2 {[%clk 0:00:59]} 37. Re1 {[%clk 0:01:23]}  Ra2 {[%clk 0:00:59]} 38. Re2 {[%clk 0:01:24]}  Kf6 {[%clk 0:00:59]} 39. Rxa2 {[%clk 0:01:23]} 1-0


[Site "https://www.chess.com"]

[Event "Titled Tuesday Blitz September 20 Late 2022"]
[White "Naroditsky, Daniel"]
[Black "Romanchuk, Viktor"]
[WhiteFideId "2026961"]
[BlackFideId "14109271"]
[WhiteElo "2628"]
[BlackElo "2242"]
[Result "1-0"]
[Round "04"]
[TimeControl "180+1"]
[Date "2022.09.20"]
[WhiteClock "0:01:59"]
[BlackClock "0:00:12"]

1. e4 {[%clk 0:03:00]}  e6 {[%clk 0:02:58]} 2. d4 {[%clk 0:03:01]}  d5 {[%clk 0:02:58]} 3. e5 {[%clk 0:03:01]}  c5 {[%clk 0:02:57]} 4. Nf3 {[%clk 0:02:59]}  Nc6 {[%clk 0:02:56]} 5. Bd3 {[%clk 0:02:59]}  cxd4 {[%clk 0:02:22]} 6. O-O {[%clk 0:02:54]}  Nge7 {[%clk 0:02:20]} 7. Re1 {[%clk 0:02:54]}  Ng6 {[%clk 0:02:18]} 8. Nbd2 {[%clk 0:02:54]}  Qc7 {[%clk 0:02:14]} 9. Bxg6 {[%clk 0:02:54]}  hxg6 {[%clk 0:02:14]} 10. Nb3 {[%clk 0:02:55]}  Be7 {[%clk 0:02:10]} 11. Nbxd4 {[%clk 0:02:55]}  Nxd4 {[%clk 0:02:10]} 12. Nxd4 {[%clk 0:02:56]}  Bd7 {[%clk 0:02:09]} 13. c3 {[%clk 0:02:56]}  Rh5 {[%clk 0:02:05]} 14. Bf4 {[%clk 0:02:56]}  Bc5 {[%clk 0:01:59]} 15. Qf3 {[%clk 0:02:56]}  Bxd4 {[%clk 0:01:55]} 16. cxd4 {[%clk 0:02:56]}  Rc8 {[%clk 0:01:56]} 17. h3 {[%clk 0:02:55]}  Qc2 {[%clk 0:01:51]} 18. Re2 {[%clk 0:02:45]}  Qa4 {[%clk 0:01:47]} 19. Rd2 {[%clk 0:02:43]}  Rc2 {[%clk 0:01:45]} 20. Rxc2 {[%clk 0:02:32]}  Qxc2 {[%clk 0:01:44]} 21. Qa3 {[%clk 0:02:33]}  Rf5 {[%clk 0:01:18]} 22. Be3 {[%clk 0:02:33]}  a6 {[%clk 0:01:14]} 23. Rc1 {[%clk 0:02:33]}  Qe2 {[%clk 0:01:09]} 24. Qd6 {[%clk 0:02:31]}  Qxb2 {[%clk 0:01:03]} 25. Rc7 {[%clk 0:02:31]}  Qb5 {[%clk 0:01:02]} 26. a4 {[%clk 0:02:27]}  Qxa4 {[%clk 0:00:51]} 27. Rxb7 {[%clk 0:02:27]}  Qc2 {[%clk 0:00:27]} 28. Rb8+ {[%clk 0:02:19]}  Bc8 {[%clk 0:00:26]} 29. Qxa6 {[%clk 0:02:19]}  Kd7 {[%clk 0:00:25]} 30. Qa7+ {[%clk 0:02:17]}  Qc7 {[%clk 0:00:22]} 31. Qa8 {[%clk 0:02:17]}  f6 {[%clk 0:00:20]} 32. g4 {[%clk 0:02:17]}  Rf3 {[%clk 0:00:19]} 33. Kg2 {[%clk 0:02:15]}  Rxe3 {[%clk 0:00:19]} 34. fxe3 {[%clk 0:02:15]}  fxe5 {[%clk 0:00:18]} 35. dxe5 {[%clk 0:02:13]}  Qc2+ {[%clk 0:00:15]} 36. Kg3 {[%clk 0:02:13]}  Qc7 {[%clk 0:00:16]} 37. Qa4+ {[%clk 0:02:05]}  Kd8 {[%clk 0:00:16]} 38. Qb4 {[%clk 0:02:02]}  Qxe5+ {[%clk 0:00:15]} 39. Qf4 {[%clk 0:02:03]}  Qf6 {[%clk 0:00:12]} 40. Qd6+ {[%clk 0:01:59]} 1-0


[Site "https://www.chess.com"]

[Event "Titled Tuesday Blitz September 20 Late 2022"]
[White "Pakleza, Zbigniew"]
[Black "Souleidis, Georgios"]
[WhiteFideId "1119290"]
[BlackFideId "4206827"]
[WhiteElo "2411"]
[BlackElo "2401"]
[Result "1/2-1/2"]
[Round "04"]
[TimeControl "180+1"]
[Date "2022.09.20"]
[WhiteClock "0:00:36"]
[BlackClock "0:00:10"]

1. d4 {[%clk 0:03:00]}  Nf6 {[%clk 0:02:58]} 2. Nf3 {[%clk 0:03:01]}  g6 {[%clk 0:02:59]} 3. Bf4 {[%clk 0:03:01]}  Bg7 {[%clk 0:02:59]} 4. e3 {[%clk 0:03:02]}  O-O {[%clk 0:02:59]} 5. Be2 {[%clk 0:03:02]}  d6 {[%clk 0:02:59]} 6. h3 {[%clk 0:03:02]}  Nfd7 {[%clk 0:03:00]} 7. O-O {[%clk 0:03:02]}  e5 {[%clk 0:03:00]} 8. Bh2 {[%clk 0:03:03]}  Nc6 {[%clk 0:03:00]} 9. c4 {[%clk 0:03:03]}  Kh8 {[%clk 0:03:00]} 10. Nc3 {[%clk 0:03:04]}  f5 {[%clk 0:03:00]} 11. Rc1 {[%clk 0:03:04]}  e4 {[%clk 0:02:59]} 12. Nd2 {[%clk 0:03:04]}  Nf6 {[%clk 0:03:00]} 13. a3 {[%clk 0:03:02]}  Ne7 {[%clk 0:03:00]} 14. b4 {[%clk 0:03:02]}  g5 {[%clk 0:02:59]} 15. d5 {[%clk 0:02:58]}  Ng6 {[%clk 0:02:57]} 16. Nb3 {[%clk 0:02:58]}  f4 {[%clk 0:02:55]} 17. Nd4 {[%clk 0:02:53]}  Qe7 {[%clk 0:02:40]} 18. c5 {[%clk 0:02:41]}  f3 {[%clk 0:02:40]} 19. gxf3 {[%clk 0:02:37]}  Bxh3 {[%clk 0:02:39]} 20. fxe4 {[%clk 0:02:27]}  Bxf1 {[%clk 0:02:24]} 21. Bxf1 {[%clk 0:02:22]}  Nxe4 {[%clk 0:02:24]} 22. Nxe4 {[%clk 0:02:16]}  Qxe4 {[%clk 0:02:25]} 23. cxd6 {[%clk 0:02:09]}  cxd6 {[%clk 0:02:25]} 24. Bxd6 {[%clk 0:02:09]}  Qxd5 {[%clk 0:01:36]} 25. Bxf8 {[%clk 0:02:08]}  Rxf8 {[%clk 0:01:37]} 26. Bg2 {[%clk 0:02:05]}  Qf7 {[%clk 0:01:36]} 27. Qf3 {[%clk 0:01:47]}  Bxd4 {[%clk 0:00:57]} 28. Qxf7 {[%clk 0:01:47]}  Rxf7 {[%clk 0:00:57]} 29. exd4 {[%clk 0:01:47]}  Nf4 {[%clk 0:00:57]} 30. Rc8+ {[%clk 0:01:35]}  Kg7 {[%clk 0:00:57]} 31. d5 {[%clk 0:01:29]}  Nxg2 {[%clk 0:00:41]} 32. Kxg2 {[%clk 0:01:28]}  Rd7 {[%clk 0:00:42]} 33. Kf3 {[%clk 0:01:14]}  Rxd5 {[%clk 0:00:23]} 34. Rc7+ {[%clk 0:01:14]}  Kg6 {[%clk 0:00:22]} 35. Ke4 {[%clk 0:01:15]}  Rf5 {[%clk 0:00:16]} 36. Rxb7 {[%clk 0:01:11]}  Rxf2 {[%clk 0:00:16]} 37. Rxa7 {[%clk 0:01:12]}  h5 {[%clk 0:00:16]} 38. Ra6+ {[%clk 0:01:07]}  Kg7 {[%clk 0:00:12]} 39. b5 {[%clk 0:01:07]}  h4 {[%clk 0:00:12]} 40. b6 {[%clk 0:01:03]}  h3 {[%clk 0:00:12]} 41. Ra8 {[%clk 0:00:46]}  Rb2 {[%clk 0:00:10]} 42. Ra7+ {[%clk 0:00:43]}  Kg6 {[%clk 0:00:10]} 43. Ra8 {[%clk 0:00:39]}  Rxb6 {[%clk 0:00:08]} 44. Rh8 {[%clk 0:00:39]}  Rb3 {[%clk 0:00:08]} 45. a4 {[%clk 0:00:39]}  Ra3 {[%clk 0:00:08]} 46. a5 {[%clk 0:00:38]}  Ra4+ {[%clk 0:00:06]} 47. Kf3 {[%clk 0:00:34]}  Rxa5 {[%clk 0:00:06]} 48. Rxh3 {[%clk 0:00:33]}  Ra3+ {[%clk 0:00:04]} 49. Kg2 {[%clk 0:00:32]}  Rxh3 {[%clk 0:00:04]} 50. Kxh3 {[%clk 0:00:33]}  Kf5 {[%clk 0:00:04]} 51. Kg3 {[%clk 0:00:33]}  g4 {[%clk 0:00:05]} 52. Kg2 {[%clk 0:00:34]}  Kf4 {[%clk 0:00:06]} 53. Kf2 {[%clk 0:00:34]}  g3+ {[%clk 0:00:07]} 54. Kg2 {[%clk 0:00:35]}  Kg4 {[%clk 0:00:08]} 55. Kg1 {[%clk 0:00:35]}  Kf3 {[%clk 0:00:08]} 56. Kf1 {[%clk 0:00:35]}  g2+ {[%clk 0:00:09]} 57. Kg1 {[%clk 0:00:36]}  Kg3 {[%clk 0:00:10]} 1/2-1/2


[Site "https://www.chess.com"]